Workbook

Sheet Sheet1
A1: 岗位代码：YC001
A2: 2023虞城县事业单位招才引智公开招聘工作人员总成绩及拟聘用人员名单
A3: 序号 | B3: 准考证号 | C3: 姓名 | D3: 性别 | E3: 报考岗位 | F3: 专业需求 | G3: 笔试分数 | H3: *50% | I3: 面试成绩 | J3: *50% | K3: 总成绩 | L3: 是否拟聘用
A4: 1 | B4: 20230010529 | C4: 董浩 | D4: 男 | E4: YC001 | F4: 法学类 | G4: 49.98 | H4: 24.99 | I4: 82.85 | J4: 41.43 | K4: 66.42 | L4: 是
A5: 2 | B5: 20230011702 | C5: 王汉博 | D5: 男 | E5: YC001 | F5: 法学类 | G5: 51.75 | H5: 25.88 | I5: 81.02 | J5: 40.51 | K5: 66.39 | L5: 否
A6: 3 | B6: 20230010306 | C6: 曹浦 | D6: 男 | E6: YC001 | F6: 法学类 | G6: 46.74 | H6: 23.37 | I6: 84.23 | J6: 42.12 | K6: 65.49 | L6: 否
A7: 4 | B7: 20230011315 | C7: 朱一凡 | D7: 男 | E7: YC001 | F7: 法学类 | G7: 51.75 | H7: 25.88 | I7: 缺考 | J7: 0.00 | K7: 25.88 | L7: 否
A8: 岗位代码：YC002
A9: 2023虞城县事业单位招才引智公开招聘工作人员总成绩及拟聘用人员名单
A10: 序号 | B10: 准考证号 | C10: 姓名 | D10: 性别 | E10: 报考岗位 | F10: 专业需求 | G10: 笔试分数 | H10: *50% | I10: 面试成绩 | J10: *50% | K10: 总成绩 | L10: 是否拟聘用
A11: 1 | B11: 20230020428 | C11: 魏佳林 | D11: 男 | E11: YC002 | F11: 法学类 | G11: 73.71 | H11: 36.86 | I11: 84.07 | J11: 42.04 | K11: 78.90 | L11: 是
A12: 2 | B12: 20230021714 | C12: 王梦雨 | D12: 女 | E12: YC002 | F12: 法学类 | G12: 73.71 | H12: 36.86 | I12: 83.89 | J12: 41.95 | K12: 78.81 | L12: 是
A13: 3 | B13: 20230021711 | C13: 郝亚威 | D13: 男 | E13: YC002 | F13: 法学类 | G13: 73.71 | H13: 36.86 | I13: 83.50 | J13: 41.75 | K13: 78.61 | L13: 是
A14: 4 | B14: 20230021716 | C14: 曹志远 | D14: 男 | E14: YC002 | F14: 法学类 | G14: 73.71 | H14: 36.86 | I14: 83.04 | J14: 41.52 | K14: 78.38 | L14: 否
A15: 5 | B15: 20230021703 | C15: 王贵平 | D15: 女 | E15: YC002 | F15: 法学类 | G15: 73.71 | H15: 36.86 | I15: 82.36 | J15: 41.18 | K15: 78.04 | L15: 否
A16: 6 | B16: 20230021704 | C16: 房娟 | D16: 女 | E16: YC002 | F16: 法学类 | G16: 73.71 | H16: 36.86 | I16: 82.15 | J16: 41.08 | K16: 77.94 | L16: 否
A17: 7 | B17: 20230021717 | C17: 张亚美 | D17: 女 | E17: YC002 | F17: 法学类 | G17: 73.71 | H17: 36.86 | I17: 81.89 | J17: 40.95 | K17: 77.81 | L17: 否
A18: 8 | B18: 20230020523 | C18: 程子懿 | D18: 男 | E18: YC002 | F18: 法学类 | G18: 70.98 | H18: 35.49 | I18: 84.30 | J18: 42.15 | K18: 77.64 | L18: 否
A19: 9 | B19: 20230020613 | C19: 贾璐珂 | D19: 女 | E19: YC002 | F19: 法学类 | G19: 66.88 | H19: 33.44 | I19: 83.70 | J19: 41.85 | K19: 75.29 | L19: 否
A20: 10 | B20: 20230021019 | C20: 张衍港 | D20: 男 | E20: YC002 | F20: 法学类 | G20: 67.83 | H20: 33.92 | I20: 82.63 | J20: 41.32 | K20: 75.24 | L20: 否
A21: 11 | B21: 20230020309 | C21: 刘建雨 | D21: 女 | E21: YC002 | F21: 法学类 | G21: 68.50 | H21: 34.25 | I21: 81.50 | J21: 40.75 | K21: 75.00 | L21: 否
A22: 12 | B22: 20230020716 | C22: 宋童 | D22: 男 | E22: YC002 | F22: 法学类 | G22: 61.77 | H22: 30.89 | I22: 82.18 | J22: 41.09 | K22: 71.98 | L22: 否
A23: 13 | B23: 20230021229 | C23: 澹亚坤 | D23: 男 | E23: YC002 | F23: 法学类 | G23: 58.48 | H23: 29.24 | I23: 83.30 | J23: 41.65 | K23: 70.89 | L23: 否
A24: 14 | B24: 20230021708 | C24: 黄世媛 | D24: 女 | E24: YC002 | F24: 法学类 | G24: 73.71 | H24: 36.86 | I24: 缺考 | J24: 0.00 | K24: 36.86 | L24: 否
A25: 15 | B25: 20230021709 | C25: 盛昭 | D25: 男 | E25: YC002 | F25: 法学类 | G25: 73.71 | H25: 36.86 | I25: 缺考 | J25: 0.00 | K25: 36.86 | L25: 否
A26: 16 | B26: 20230021715 | C26: 贾明慧 | D26: 女 | E26: YC002 | F26: 法学类 | G26: 73.71 | H26: 36.86 | I26: 缺考 | J26: 0.00 | K26: 36.86 | L26: 否
A27: 17 | B27: 20230021718 | C27: 李红丽 | D27: 女 | E27: YC002 | F27: 法学类 | G27: 73.71 | H27: 36.86 | I27: 缺考 | J27: 0.00 | K27: 36.86 | L27: 否
A28: 18 | B28: 20230020503 | C28: 王茂华 | D28: 男 | E28: YC002 | F28: 法学类 | G28: 63.11 | H28: 31.56 | I28: 缺考 | J28: 0.00 | K28: 31.56 | L28: 否
A29: 19 | B29: 20230021505 | C29: 朱亚玲 | D29: 女 | E29: YC002 | F29: 法学类 | G29: 63.02 | H29: 31.51 | I29: 缺考 | J29: 0.00 | K29: 31.51 | L29: 否
A30: 岗位代码：YC004
A31: 2023虞城县事业单位招才引智公开招聘工作人员总成绩及拟聘用人员名单
A32: 序号 | B32: 准考证号 | C32: 姓名 | D32: 性别 | E32: 报考岗位 | F32: 专业需求 | G32: 笔试分数 | H32: *50% | I32: 面试成绩 | J32: *50% | K32: 总成绩 | L32: 是否拟聘用
A33: 1 | B33: 20230040810 | C33: 吴舒宇 | D33: 女 | E33: YC004 | F33: 会计 | G33: 65.59 | H33: 32.80 | I33: 83.26 | J33: 41.63 | K33: 74.43 | L33: 是
A34: 2 | B34: 20230041530 | C34: 马畅 | D34: 男 | E34: YC004 | F34: 会计 | G34: 62.92 | H34: 31.46 | I34: 84.67 | J34: 42.34 | K34: 73.80 | L34: 否
A35: 3 | B35: 20230041405 | C35: 刘冰倩 | D35: 女 | E35: YC004 | F35: 会计 | G35: 63.06 | H35: 31.53 | I35: 82.76 | J35: 41.38 | K35: 72.91 | L35: 否
A36: 4 | B36: 20230041719 | C36: 李笑楠 | D36: 女 | E36: YC004 | F36: 会计 | G36: 65.59 | H36: 32.80 | I36: 缺考 | J36: 0.00 | K36: 32.80 | L36: 否
A37: 5 | B37: 20230041721 | C37: 宋林珊 | D37: 女 | E37: YC004 | F37: 会计 | G37: 65.59 | H37: 32.80 | I37: 缺考 | J37: 0.00 | K37: 32.80 | L37: 否
A38: 岗位代码：YC005
A39: 2023虞城县事业单位招才引智公开招聘工作人员总成绩及拟聘用人员名单
A40: 序号 | B40: 准考证号 | C40: 姓名 | D40: 性别 | E40: 报考岗位 | F40: 专业需求 | G40: 笔试分数 | H40: *50% | I40: 面试成绩 | J40: *50% | K40: 总成绩 | L40: 是否拟聘用
A41: 1 | B41: 20230051613 | C41: 贺亚辉 | D41: 男 | E41: YC005 | F41: 审计 | G41: 61.92 | H41: 30.96 | I41: 83.19 | J41: 41.60 | K41: 72.56 | L41: 是
A42: 2 | B42: 20230050826 | C42: 王艳雨 | D42: 女 | E42: YC005 | F42: 审计 | G42: 57.28 | H42: 28.64 | I42: 82.12 | J42: 41.06 | K42: 69.70 | L42: 否
A43: 岗位代码：YC006
A44: 2023虞城县事业单位招才引智公开招聘工作人员总成绩及拟聘用人员名单
A45: 序号 | B45: 准考证号 | C45: 姓名 | D45: 性别 | E45: 报考岗位 | F45: 专业需求 | G45: 笔试分数 | H45: *50% | I45: 面试成绩 | J45: *50% | K45: 总成绩 | L45: 是否拟聘用
A46: 1 | B46: 20230060818 | C46: 樊方新 | D46: 女 | E46: YC006 | F46: 档案学 | G46: 48.36 | H46: 24.18 | I46: 82.87 | J46: 41.44 | K46: 65.62 | L46: 是
A47: 2 | B47: 20230061321 | C47: 姜建建 | D47: 男 | E47: YC006 | F47: 档案学 | G47: 48.17 | H47: 24.09 | I47: 80.31 | J47: 40.16 | K47: 64.25 | L47: 否
A48: 岗位代码：YC007
A49: 2023虞城县事业单位招才引智公开招聘工作人员总成绩及拟聘用人员名单
A50: 1 | B50: 20230070528 | C50: 王韵茜 | D50: 女 | E50: YC007 | F50: 档案学 | G50: 67.26 | H50: 33.63 | I50: 84.27 | J50: 42.14 | K50: 75.77 | L50: 是
A51: 2 | B51: 20230070721 | C51: 张岩 | D51: 女 | E51: YC007 | F51: 档案学 | G51: 62.87 | H51: 31.44 | I51: 83.59 | J51: 41.80 | K51: 73.24 | L51: 是
A52: 3 | B52: 20230071010 | C52: 王冲 | D52: 男 | E52: YC007 | F52: 档案学 | G52: 56.42 | H52: 28.21 | I52: 缺考 | J52: 0.00 | K52: 28.21 | L52: 否
A53: 4 | B53: 20230071013 | C53: 蔡荣凯 | D53: 男 | E53: YC007 | F53: 档案学 | G53: 50.22 | H53: 25.11 | I53: 缺考 | J53: 0.00 | K53: 25.11 | L53: 否
A54: 岗位代码：YC008
A55: 2023虞城县事业单位招才引智公开招聘工作人员总成绩及拟聘用人员名单
A56: 序号 | B56: 准考证号 | C56: 姓名 | D56: 性别 | E56: 报考岗位 | F56: 专业需求 | G56: 笔试分数 | H56: *50% | I56: 面试成绩 | J56: *50% | K56: 总成绩 | L56: 是否拟聘用
A57: 1 | B57: 20230081204 | C57: 徐梦遥 | D57: 女 | E57: YC008 | F57: 工商管理类 | G57: 59.43 | H57: 29.72 | I57: 84.46 | J57: 42.23 | K57: 71.95 | L57: 是
A58: 2 | B58: 20230080319 | C58: 王浩然 | D58: 男 | E58: YC008 | F58: 工商管理类 | G58: 59.82 | H58: 29.91 | I58: 83.55 | J58: 41.78 | K58: 71.69 | L58: 否
A59: 3 | B59: 20230080116 | C59: 刘冉 | D59: 男 | E59: YC008 | F59: 工商管理类 | G59: 58.24 | H59: 29.12 | I59: 84.48 | J59: 42.24 | K59: 71.36 | L59: 否
A60: 4 | B60: 20230081723 | C60: 李文彩 | D60: 女 | E60: YC008 | F60: 工商管理类 | G60: 59.82 | H60: 29.91 | I60: 缺考 | J60: 0.00 | K60: 29.91 | L60: 否
A61: 岗位代码：YC009
A62: 2023虞城县事业单位招才引智公开招聘工作人员总成绩及拟聘用人员名单
A63: 序号 | B63: 准考证号 | C63: 姓名 | D63: 性别 | E63: 报考岗位 | F63: 专业需求 | G63: 笔试分数 | H63: *50% | I63: 面试成绩 | J63: *50% | K63: 总成绩 | L63: 是否拟聘用
A64: 1 | B64: 20230090512 | C64: 崔皓然 | D64: 男 | E64: YC009 | F64: 工商管理类 | G64: 71.22 | H64: 35.61 | I64: 84.05 | J64: 42.03 | K64: 77.64 | L64: 是
A65: 2 | B65: 20230090519 | C65: 刘丹青 | D65: 女 | E65: YC009 | F65: 工商管理类 | G65: 70.46 | H65: 35.23 | I65: 84.41 | J65: 42.21 | K65: 77.44 | L65: 否
A66: 3 | B66: 20230090205 | C66: 卢博 | D66: 男 | E66: YC009 | F66: 工商管理类 | G66: 70.41 | H66: 35.21 | I66: 81.36 | J66: 40.68 | K66: 75.89 | L66: 否
A67: 4 | B67: 20230091724 | C67: 李盈睿 | D67: 女 | E67: YC009 | F67: 工商管理类 | G67: 71.22 | H67: 35.61 | I67: 缺考 | J67: 0.00 | K67: 35.61 | L67: 否
A68: 岗位代码：YC010
A69: 2023虞城县事业单位招才引智公开招聘工作人员总成绩及拟聘用人员名单
A70: 序号 | B70: 准考证号 | C70: 姓名 | D70: 性别 | E70: 报考岗位 | F70: 专业需求 | G70: 笔试分数 | H70: *50% | I70: 面试成绩 | J70: *50% | K70: 总成绩 | L70: 是否拟聘用
A71: 1 | B71: 20230100606 | C71: 赵权洲 | D71: 男 | E71: YC010 | F71: 计算机类 | G71: 70.70 | H71: 35.35 | I71: 85.31 | J71: 42.66 | K71: 78.01 | L71: 是
A72: 2 | B72: 20230100704 | C72: 王瀚平 | D72: 男 | E72: YC010 | F72: 计算机类 | G72: 68.79 | H72: 34.40 | I72: 84.61 | J72: 42.31 | K72: 76.71 | L72: 是
A73: 3 | B73: 20230101725 | C73: 何珍珍 | D73: 女 | E73: YC010 | F73: 计算机类 | G73: 70.70 | H73: 35.35 | I73: 82.59 | J73: 41.30 | K73: 76.65 | L73: 否
A74: 4 | B74: 20230100112 | C74: 叶琛 | D74: 男 | E74: YC010 | F74: 计算机类 | G74: 68.41 | H74: 34.21 | I74: 84.68 | J74: 42.34 | K74: 76.55 | L74: 否
A75: 5 | B75: 20230100416 | C75: 王舒宇 | D75: 女 | E75: YC010 | F75: 计算机类 | G75: 67.55 | H75: 33.78 | I75: 84.28 | J75: 42.14 | K75: 75.92 | L75: 否
A76: 6 | B76: 20230100125 | C76: 陈彦茹 | D76: 女 | E76: YC010 | F76: 计算机类 | G76: 63.68 | H76: 31.84 | I76: 82.83 | J76: 41.42 | K76: 73.26 | L76: 否
A77: 7 | B77: 20230100620 | C77: 任钊增 | D77: 男 | E77: YC010 | F77: 计算机类 | G77: 58.05 | H77: 29.03 | I77: 81.13 | J77: 40.57 | K77: 69.60 | L77: 否
A78: 岗位代码：YC011
A79: 2023虞城县事业单位招才引智公开招聘工作人员总成绩及拟聘用人员名单
A80: 序号 | B80: 准考证号 | C80: 姓名 | D80: 性别 | E80: 报考岗位 | F80: 专业需求 | G80: 笔试分数 | H80: *50% | I80: 面试成绩 | J80: *50% | K80: 总成绩 | L80: 是否拟聘用
A81: 1 | B81: 20230111214 | C81: 林士凯 | D81: 男 | E81: YC011 | F81: 计算机类 | G81: 74.42 | H81: 37.21 | I81: 84.99 | J81: 42.50 | K81: 79.71 | L81: 是
A82: 2 | B82: 20230110118 | C82: 陈婷婷 | D82: 女 | E82: YC011 | F82: 计算机类 | G82: 74.22 | H82: 37.11 | I82: 85.06 | J82: 42.53 | K82: 79.64 | L82: 是
A83: 3 | B83: 20230110229 | C83: 代佳琦 | D83: 女 | E83: YC011 | F83: 计算机类 | G83: 70.27 | H83: 35.14 | I83: 85.07 | J83: 42.54 | K83: 77.68 | L83: 否
A84: 4 | B84: 20230110615 | C84: 吴迪 | D84: 男 | E84: YC011 | F84: 计算机类 | G84: 67.93 | H84: 33.97 | I84: 84.17 | J84: 42.09 | K84: 76.06 | L84: 否
A85: 5 | B85: 20230110711 | C85: 姜灿 | D85: 男 | E85: YC011 | F85: 计算机类 | G85: 69.74 | H85: 34.87 | I85: 81.90 | J85: 40.95 | K85: 75.82 | L85: 否
A86: 岗位代码：YC012
A87: 2023虞城县事业单位招才引智公开招聘工作人员总成绩及拟聘用人员名单
A88: 序号 | B88: 准考证号 | C88: 姓名 | D88: 性别 | E88: 报考岗位 | F88: 专业需求 | G88: 笔试分数 | H88: *50% | I88: 面试成绩 | J88: *50% | K88: 总成绩 | L88: 是否拟聘用
A89: 1 | B89: 20230120103 | C89: 朱家申 | D89: 男 | E89: YC012 | F89: 广播电视编导 | G89: 80.00 | H89: 40.00 | I89: 84.17 | J89: 42.09 | K89: 82.09 | L89: 是
A90: 2 | B90: 20230121726 | C90: 刘莹莹 | D90: 女 | E90: YC012 | F90: 广播电视编导 | G90: 80.00 | H90: 40.00 | I90: 83.19 | J90: 41.60 | K90: 81.60 | L90: 是
A91: 3 | B91: 20230120403 | C91: 郭雪亚 | D91: 男 | E91: YC012 | F91: 广播电视编导 | G91: 78.33 | H91: 39.17 | I91: 83.94 | J91: 41.97 | K91: 81.14 | L91: 否
A92: 4 | B92: 20230120311 | C92: 陈复港 | D92: 男 | E92: YC012 | F92: 广播电视编导 | G92: 73.04 | H92: 36.52 | I92: 84.12 | J92: 42.06 | K92: 78.58 | L92: 否
A93: 5 | B93: 20230120710 | C93: 万龙吟 | D93: 男 | E93: YC012 | F93: 广播电视编导 | G93: 66.97 | H93: 33.49 | I93: 83.09 | J93: 41.55 | K93: 75.04 | L93: 否
A94: 6 | B94: 20230120814 | C94: 万紫晴 | D94: 女 | E94: YC012 | F94: 广播电视编导 | G94: 65.97 | H94: 32.99 | I94: 83.29 | J94: 41.65 | K94: 74.64 | L94: 否
A95: 岗位代码：YC013
A96: 2023虞城县事业单位招才引智公开招聘工作人员总成绩及拟聘用人员名单
A97: 序号 | B97: 准考证号 | C97: 姓名 | D97: 性别 | E97: 报考岗位 | F97: 专业需求 | G97: 笔试分数 | H97: *50% | I97: 面试成绩 | J97: *50% | K97: 总成绩 | L97: 是否拟聘用
A98: 1 | B98: 20230131120 | C98: 李卓磊 | D98: 女 | E98: YC013 | F98: 播音与主持艺术 | G98: 69.60 | H98: 34.80 | I98: 84.36 | J98: 42.18 | K98: 76.98 | L98: 是
A99: 2 | B99: 20230130728 | C99: 杨伊然 | D99: 女 | E99: YC013 | F99: 播音与主持艺术 | G99: 66.49 | H99: 33.25 | I99: 85.22 | J99: 42.61 | K99: 75.86 | L99: 是
A100: 3 | B100: 20230131513 | C100: 梁志豪 | D100: 男 | E100: YC013 | F100: 播音与主持艺术 | G100: 66.31 | H100: 33.16 | I100: 84.33 | J100: 42.17 | K100: 75.33 | L100: 否
A101: 4 | B101: 20230130617 | C101: 李欢欢 | D101: 女 | E101: YC013 | F101: 播音与主持艺术 | G101: 54.75 | H101: 27.38 | I101: 85.29 | J101: 42.65 | K101: 70.03 | L101: 否
A102: 5 | B102: 20230131325 | C102: 许卓凡 | D102: 男 | E102: YC013 | F102: 播音与主持艺术 | G102: 55.66 | H102: 27.83 | I102: 82.14 | J102: 41.07 | K102: 68.90 | L102: 否
A103: 6 | B103: 20230131309 | C103: 陈肖如 | D103: 女 | E103: YC013 | F103: 播音与主持艺术 | G103: 51.75 | H103: 25.88 | I103: 85.29 | J103: 42.65 | K103: 68.53 | L103: 否
A104: 岗位代码：YC014
A105: 2023虞城县事业单位招才引智公开招聘工作人员总成绩及拟聘用人员名单
A106: 序号 | B106: 准考证号 | C106: 姓名 | D106: 性别 | E106: 报考岗位 | F106: 专业需求 | G106: 笔试分数 | H106: *50% | I106: 面试成绩 | J106: *50% | K106: 总成绩 | L106: 是否拟聘用
A107: 1 | B107: 20230140218 | C107: 刘梦楠 | D107: 女 | E107: YC014 | F107: 新闻传播学类 | G107: 70.79 | H107: 35.40 | I107: 82.24 | J107: 41.12 | K107: 76.52 | L107: 是
A108: 2 | B108: 20230140307 | C108: 张永晴 | D108: 女 | E108: YC014 | F108: 新闻传播学类 | G108: 68.69 | H108: 34.35 | I108: 84.31 | J108: 42.16 | K108: 76.51 | L108: 是
A109: 3 | B109: 20230140902 | C109: 屈思颖 | D109: 女 | E109: YC014 | F109: 新闻传播学类 | G109: 68.17 | H109: 34.09 | I109: 84.51 | J109: 42.26 | K109: 76.35 | L109: 否
A110: 4 | B110: 20230140504 | C110: 邵文瀚 | D110: 男 | E110: YC014 | F110: 新闻传播学类 | G110: 63.59 | H110: 31.80 | I110: 84.68 | J110: 42.34 | K110: 74.14 | L110: 否
A111: 5 | B111: 20230140819 | C111: 杨爱华 | D111: 女 | E111: YC014 | F111: 新闻传播学类 | G111: 56.62 | H111: 28.31 | I111: 84.23 | J111: 42.12 | K111: 70.43 | L111: 否
A112: 岗位代码：YC015
A113: 2023虞城县事业单位招才引智公开招聘工作人员总成绩及拟聘用人员名单
A114: 序号 | B114: 准考证号 | C114: 姓名 | D114: 性别 | E114: 报考岗位 | F114: 专业需求 | G114: 笔试分数 | H114: *50% | I114: 面试成绩 | J114: *50% | K114: 总成绩 | L114: 是否拟聘用
A115: 1 | B115: 20230150210 | C115: 陈炳昆 | D115: 男 | E115: YC015 | F115: 机械电子工程 | G115: 67.88 | H115: 33.94 | I115: 85.18 | J115: 42.59 | K115: 76.53 | L115: 是
A116: 2 | B116: 20230151402 | C116: 房昆 | D116: 男 | E116: YC015 | F116: 机械电子工程 | G116: 54.71 | H116: 27.36 | I116: 缺考 | J116: 0.00 | K116: 27.36 | L116: 否
A117: 岗位代码：YC016
A118: 2023虞城县事业单位招才引智公开招聘工作人员总成绩及拟聘用人员名单
A119: 序号 | B119: 准考证号 | C119: 姓名 | D119: 性别 | E119: 报考岗位 | F119: 专业需求 | G119: 笔试分数 | H119: *50% | I119: 面试成绩 | J119: *50% | K119: 总成绩 | L119: 是否拟聘用
A120: 1 | B120: 20230160505 | C120: 薛岩岩 | D120: 女 | E120: YC016 | F120: 商务英语 | G120: 66.06 | H120: 33.03 | I120: 83.86 | J120: 41.93 | K120: 74.96 | L120: 是
A121: 2 | B121: 20230160612 | C121: 夏盼盼 | D121: 女 | E121: YC016 | F121: 商务英语 | G121: 62.49 | H121: 31.25 | I121: 85.67 | J121: 42.84 | K121: 74.09 | L121: 否
A122: 3 | B122: 20230160420 | C122: 李珍 | D122: 女 | E122: YC016 | F122: 商务英语 | G122: 56.66 | H122: 28.33 | I122: 82.45 | J122: 41.23 | K122: 69.56 | L122: 否
A123: 岗位代码：YC017
A124: 2023虞城县事业单位招才引智公开招聘工作人员总成绩及拟聘用人员名单
A125: 序号 | B125: 准考证号 | C125: 姓名 | D125: 性别 | E125: 报考岗位 | F125: 专业需求 | G125: 笔试分数 | H125: *50% | I125: 面试成绩 | J125: *50% | K125: 总成绩 | L125: 是否拟聘用
A126: 1 | B126: 20230171729 | C126: 张珂 | D126: 女 | E126: YC017 | F126: 统计学类 | G126: 61.20 | H126: 30.60 | I126: 83.46 | J126: 41.73 | K126: 72.33 | L126: 是
A127: 2 | B127: 20230170801 | C127: 王宇佳 | D127: 女 | E127: YC017 | F127: 统计学类 | G127: 61.20 | H127: 30.60 | I127: 82.54 | J127: 41.27 | K127: 71.87 | L127: 是
A128: 3 | B128: 20230170424 | C128: 宋军军 | D128: 男 | E128: YC017 | F128: 统计学类 | G128: 56.71 | H128: 28.36 | I128: 84.73 | J128: 42.37 | K128: 70.73 | L128: 否
A129: 4 | B129: 20230170511 | C129: 崔涵 | D129: 女 | E129: YC017 | F129: 统计学类 | G129: 51.94 | H129: 25.97 | I129: 缺考 | J129: 0.00 | K129: 25.97 | L129: 否
A130: 岗位代码：YC018
A131: 2023虞城县事业单位招才引智公开招聘工作人员总成绩及拟聘用人员名单
A132: 序号 | B132: 准考证号 | C132: 姓名 | D132: 性别 | E132: 报考岗位 | F132: 专业需求 | G132: 笔试分数 | H132: *50% | I132: 面试成绩 | J132: *50% | K132: 总成绩 | L132: 是否拟聘用
A133: 1 | B133: 20230180509 | C133: 夏梦洁 | D133: 女 | E133: YC018 | F133: 工程造价 | G133: 66.54 | H133: 33.27 | I133: 82.13 | J133: 41.07 | K133: 74.34 | L133: 是
A134: 2 | B134: 20230181527 | C134: 王雨 | D134: 女 | E134: YC018 | F134: 工程造价 | G134: 60.20 | H134: 30.10 | I134: 84.72 | J134: 42.36 | K134: 72.46 | L134: 否
A135: 岗位代码：YC019
A136: 2023虞城县事业单位招才引智公开招聘工作人员总成绩及拟聘用人员名单
A137: 序号 | B137: 准考证号 | C137: 姓名 | D137: 性别 | E137: 报考岗位 | F137: 专业需求 | G137: 笔试分数 | H137: *50% | I137: 面试成绩 | J137: *50% | K137: 总成绩 | L137: 是否拟聘用
A138: 1 | B138: 20230190820 | C138: 袁梓淞 | D138: 男 | E138: YC019 | F138: 工程管理 | G138: 74.56 | H138: 37.28 | I138: 85.89 | J138: 42.95 | K138: 80.23 | L138: 是
A139: 2 | B139: 20230190829 | C139: 张蕴琛 | D139: 男 | E139: YC019 | F139: 工程管理 | G139: 74.65 | H139: 37.33 | I139: 85.60 | J139: 42.80 | K139: 80.13 | L139: 否
A140: 3 | B140: 20230191619 | C140: 裴子铭 | D140: 男 | E140: YC019 | F140: 工程管理 | G140: 61.39 | H140: 30.70 | I140: 缺考 | J140: 0.00 | K140: 30.70 | L140: 否
A141: 岗位代码：YC020
A142: 2023虞城县事业单位招才引智公开招聘工作人员总成绩及拟聘用人员名单
A143: 序号 | B143: 准考证号 | C143: 姓名 | D143: 性别 | E143: 报考岗位 | F143: 专业需求 | G143: 笔试分数 | H143: *50% | I143: 面试成绩 | J143: *50% | K143: 总成绩 | L143: 是否拟聘用
A144: 1 | B144: 20230200510 | C144: 田展羽 | D144: 男 | E144: YC020 | F144: 交通工程 | G144: 70.80 | H144: 35.40 | I144: 85.16 | J144: 42.58 | K144: 77.98 | L144: 是
A145: 2 | B145: 20230200502 | C145: 葛伟强 | D145: 男 | E145: YC020 | F145: 交通工程 | G145: 70.27 | H145: 35.14 | I145: 85.62 | J145: 42.81 | K145: 77.95 | L145: 是
A146: 3 | B146: 20230201730 | C146: 赵君 | D146: 女 | E146: YC020 | F146: 交通工程 | G146: 70.80 | H146: 35.40 | I146: 84.57 | J146: 42.29 | K146: 77.69 | L146: 否
A147: 4 | B147: 20230200115 | C147: 王家琦 | D147: 男 | E147: YC020 | F147: 交通工程 | G147: 66.83 | H147: 33.42 | I147: 81.86 | J147: 40.93 | K147: 74.35 | L147: 否
A148: 5 | B148: 20230201416 | C148: 郭成祥 | D148: 男 | E148: YC020 | F148: 交通工程 | G148: 59.96 | H148: 29.98 | I148: 82.61 | J148: 41.31 | K148: 71.29 | L148: 否
A149: 6 | B149: 20230200215 | C149: 李开通 | D149: 男 | E149: YC020 | F149: 交通工程 | G149: 59.29 | H149: 29.65 | I149: 81.95 | J149: 40.98 | K149: 70.63 | L149: 否
A150: 7 | B150: 20230201732 | C150: 许宁 | D150: 男 | E150: YC020 | F150: 交通工程 | G150: 70.80 | H150: 35.40 | I150: 缺考 | J150: 0.00 | K150: 35.40 | L150: 否
A151: 8 | B151: 20230201528 | C151: 吴尚 | D151: 男 | E151: YC020 | F151: 交通工程 | G151: 62.30 | H151: 31.15 | I151: 缺考 | J151: 0.00 | K151: 31.15 | L151: 否
A152: 岗位代码：YC021
A153: 2023虞城县事业单位招才引智公开招聘工作人员总成绩及拟聘用人员名单
A154: 序号 | B154: 准考证号 | C154: 姓名 | D154: 性别 | E154: 报考岗位 | F154: 专业需求 | G154: 笔试分数 | H154: *50% | I154: 面试成绩 | J154: *50% | K154: 总成绩 | L154: 是否拟聘用
A155: 1 | B155: 20230210211 | C155: 刘俊曦 | D155: 男 | E155: YC021 | F155: 物流管理 | G155: 69.36 | H155: =G155*50% -> 34.68 | I155: 83.80 | J155: =I155*50% -> 41.90 | K155: =SUM(H155+J155) -> 76.58 | L155: 是
A156: 2 | B156: 20230211733 | C156: 杨慧 | D156: 女 | E156: YC021 | F156: 物流管理 | G156: 69.36 | H156: 34.68 | I156: 82.52 | J156: 41.26 | K156: 75.94 | L156: 否
A157: 3 | B157: 20230210109 | C157: 彭琳起 | D157: 男 | E157: YC021 | F157: 物流管理 | G157: 68.07 | H157: 34.04 | I157: 83.05 | J157: 41.53 | K157: 75.57 | L157: 否
A158: 4 | B158: 20230210715 | C158: 宋莹莹 | D158: 女 | E158: YC021 | F158: 物流管理 | G158: 58.24 | H158: 29.12 | I158: 83.47 | J158: 41.74 | K158: 70.86 | L158: 否
A159: 岗位代码：YC022
A160: 2023虞城县事业单位招才引智公开招聘工作人员总成绩及拟聘用人员名单
A161: 序号 | B161: 准考证号 | C161: 姓名 | D161: 性别 | E161: 报考岗位 | F161: 专业需求 | G161: 笔试分数 | H161: *50% | I161: 面试成绩 | J161: *50% | K161: 总成绩 | L161: 是否拟聘用
A162: 1 | B162: 20230220308 | C162: 张喆 | D162: 男 | E162: YC022 | F162: 测绘工程 | G162: 60.53 | H162: =G162*50% -> 30.27 | I162: 84.99 | J162: =I162*50% -> 42.50 | K162: 72.77 | L162: 是
A163: 2 | B163: 20230221734 | C163: 杨莎莎 | D163: 女 | E163: YC022 | F163: 测绘工程 | G163: 60.53 | H163: 30.27 | I163: 84.23 | J163: 42.12 | K163: 72.39 | L163: 否
A164: 3 | B164: 20230221736 | C164: 田扬 | D164: 男 | E164: YC022 | F164: 测绘工程 | G164: 60.53 | H164: 30.27 | I164: 83.69 | J164: 41.85 | K164: 72.11 | L164: 否
A165: 4 | B165: 20230221735 | C165: 曹高岩 | D165: 男 | E165: YC022 | F165: 测绘工程 | G165: 60.53 | H165: 30.27 | I165: 82.31 | J165: 41.16 | K165: 71.43 | L165: 否
A166: 5 | B166: 20230220128 | C166: 刘国华 | D166: 女 | E166: YC022 | F166: 测绘工程 | G166: 52.75 | H166: 26.38 | I166: 82.19 | J166: 41.10 | K166: 67.48 | L166: 否
A167: 6 | B167: 20230221606 | C167: 李波香 | D167: 女 | E167: YC022 | F167: 测绘工程 | G167: 55.14 | H167: 27.57 | I167: 缺考 | J167: 0.00 | K167: 27.57 | L167: 否
A168: 岗位代码：YC023
A169: 2023虞城县事业单位招才引智公开招聘工作人员总成绩及拟聘用人员名单
A170: 序号 | B170: 准考证号 | C170: 姓名 | D170: 性别 | E170: 报考岗位 | F170: 专业需求 | G170: 笔试分数 | H170: *50% | I170: 面试成绩 | J170: *50% | K170: 总成绩 | L170: 是否拟聘用
A171: 1 | B171: 20230230206 | C171: 刘晴 | D171: 女 | E171: YC023 | F171: 美术学 | G171: 67.06 | H171: =G171*50% -> 33.53 | I171: 85.42 | J171: =I171*50% -> 42.71 | K171: =H171+J171 -> 76.24 | L171: 是
A172: 2 | B172: 20230231741 | C172: 乔有为 | D172: 男 | E172: YC023 | F172: 美术学 | G172: 67.06 | H172: 33.53 | I172: 83.29 | J172: 41.65 | K172: 75.18 | L172: 否
A173: 3 | B173: 20230231742 | C173: 甄瑞朋 | D173: 男 | E173: YC023 | F173: 美术学 | G173: 67.06 | H173: 33.53 | I173: 82.46 | J173: 41.23 | K173: 74.76 | L173: 否
A174: 4 | B174: 20230231740 | C174: 田开放 | D174: 男 | E174: YC023 | F174: 美术学 | G174: 67.06 | H174: 33.53 | I174: 82.41 | J174: 41.21 | K174: 74.74 | L174: 否
A175: 5 | B175: 20230231743 | C175: 杨晨 | D175: 女 | E175: YC023 | F175: 美术学 | G175: 67.06 | H175: 33.53 | I175: 82.05 | J175: 41.03 | K175: 74.56 | L175: 否
A176: 6 | B176: 20230230830 | C176: 王健 | D176: 男 | E176: YC023 | F176: 美术学 | G176: 63.44 | H176: 31.72 | I176: 81.56 | J176: 40.78 | K176: 72.50 | L176: 否
A177: 7 | B177: 20230231102 | C177: 王冰冰 | D177: 女 | E177: YC023 | F177: 美术学 | G177: 58.48 | H177: 29.24 | I177: 84.72 | J177: 42.36 | K177: 71.60 | L177: 否
A178: 岗位代码：YC024
A179: 2023虞城县事业单位招才引智公开招聘工作人员总成绩及拟聘用人员名单
A180: 序号 | B180: 准考证号 | C180: 姓名 | D180: 性别 | E180: 报考岗位 | F180: 专业需求 | G180: 笔试分数 | H180: *50% | I180: 面试成绩 | J180: *50% | K180: 总成绩 | L180: 是否拟聘用
A181: 1 | B181: 20230240414 | C181: 葛美延 | D181: 女 | E181: YC024 | F181: 视觉传达设计 | G181: 63.72 | H181: =G181*50% -> 31.86 | I181: 84.06 | J181: =I181*50% -> 42.03 | K181: =H181+J181 -> 73.89 | L181: 是
A182: 2 | B182: 20230241512 | C182: 李昊 | D182: 男 | E182: YC024 | F182: 视觉传达设计 | G182: 62.30 | H182: 31.15 | I182: 82.19 | J182: =I182*50% -> 41.10 | K182: 72.25 | L182: 否
A183: 3 | B183: 20230241421 | C183: 胡伟建 | D183: 男 | E183: YC024 | F183: 视觉传达设计 | G183: 62.87 | H183: 31.44 | I183: 缺考 | J183: 0.00 | K183: 31.44 | L183: 否
A184: 岗位代码：YC025
A185: 2023虞城县事业单位招才引智公开招聘工作人员总成绩及拟聘用人员名单
A186: 序号 | B186: 准考证号 | C186: 姓名 | D186: 性别 | E186: 报考岗位 | F186: 专业需求 | G186: 笔试分数 | H186: *50% | I186: 面试成绩 | J186: *50% | K186: 总成绩 | L186: 是否拟聘用
A187: 1 | B187: 20230250521 | C187: 杨增园 | D187: 男 | E187: YC025 | F187: 法学 | G187: 69.98 | H187: =G187*50% -> 34.99 | I187: 85.07 | J187: =I187*50% -> 42.54 | K187: =H187+J187 -> 77.53 | L187: 是
A188: 2 | B188: 20230250618 | C188: 王湘湘 | D188: 女 | E188: YC025 | F188: 法学 | G188: 71.70 | H188: 35.85 | I188: 82.81 | J188: 41.41 | K188: 77.26 | L188: 是
A189: 3 | B189: 20230250213 | C189: 唐浩铭 | D189: 男 | E189: YC025 | F189: 法学 | G189: 66.59 | H189: 33.30 | I189: 85.10 | J189: 42.55 | K189: 75.85 | L189: 是
A190: 4 | B190: 20230251310 | C190: 刘宇翔 | D190: 男 | E190: YC025 | F190: 法学 | G190: 69.02 | H190: 34.51 | I190: 81.48 | J190: 40.74 | K190: 75.25 | L190: 是
A191: 5 | B191: 20230250102 | C191: 孙世豪 | D191: 男 | E191: YC025 | F191: 法学 | G191: 65.45 | H191: 32.73 | I191: 83.91 | J191: 41.96 | K191: 74.69 | L191: 是
A192: 6 | B192: 20230251004 | C192: 陈司 | D192: 男 | E192: YC025 | F192: 法学 | G192: 65.21 | H192: 32.61 | I192: 83.42 | J192: 41.71 | K192: =H192+J192 -> 74.32 | L192: 是
A193: 7 | B193: 20230251110 | C193: 袁芊芊 | D193: 女 | E193: YC025 | F193: 法学 | G193: 63.01 | H193: 31.51 | I193: 85.52 | J193: 42.76 | K193: 74.27 | L193: 是
A194: 8 | B194: 20230250807 | C194: 潘昱昊 | D194: 男 | E194: YC025 | F194: 法学 | G194: 63.83 | H194: 31.92 | I194: 84.02 | J194: 42.01 | K194: 73.93 | L194: 是
A195: 9 | B195: 20230250514 | C195: 王雪 | D195: 女 | E195: YC025 | F195: 法学 | G195: 59.91 | H195: 29.96 | I195: 85.86 | J195: 42.93 | K195: 72.89 | L195: 是
A196: 10 | B196: 20230250111 | C196: 韩珣 | D196: 女 | E196: YC025 | F196: 法学 | G196: 61.82 | H196: 30.91 | I196: 83.37 | J196: 41.69 | K196: 72.60 | L196: 是
A197: 11 | B197: 20230251611 | C197: 周明明 | D197: 男 | E197: YC025 | F197: 法学 | G197: 56.33 | H197: 28.17 | I197: 85.13 | J197: 42.57 | K197: 70.74 | L197: 是
A198: 12 | B198: 20230251308 | C198: 任熙锋 | D198: 男 | E198: YC025 | F198: 法学 | G198: 58.57 | H198: 29.29 | I198: 82.83 | J198: 41.42 | K198: 70.71 | L198: 是
A199: 13 | B199: 20230251503 | C199: 孙永杰 | D199: 男 | E199: YC025 | F199: 法学 | G199: 57.24 | H199: 28.62 | I199: 84.08 | J199: 42.04 | K199: =H199+J199 -> 70.66 | L199: 是
A200: 14 | B200: 20230251429 | C200: 邱劲光 | D200: 男 | E200: YC025 | F200: 法学 | G200: 58.33 | H200: 29.17 | I200: 82.57 | J200: 41.29 | K200: 70.46 | L200: 是
... 20 more rows

Sheet Sheet3
